bitfinex/quotes_ETHUSD_20250808
["timestamp","ask_amount","ask_price","bid_price","bid_amount"]
[1754696050646,0.124,4023.3,4023.2,2.48558361]
[1754696050844,3.918,4023.3,4023.2,2.93478361]
[1754696051374,4.664641,4023.3,4023.2,2.93478361]
[1754696051578,4.664641,4023.3,4023.2,3.47703142]
[1754696054250,4.664641,4023.3,4023.2,0.99144781]
[1754696054450,4.664641,4023.3,4023.2,2.93478361]
[1754696055880,4.664641,4023.3,4023.2,2.48558361]
[1754696056055,4.664641,4023.3,4022.9,2.93496541]
[1754696056245,4.664641,4023.3,4023.2,2.48558361]
[1754696056450,3.918,4023.3,4023.2,2.48558361]
[1754696056653,4.664621,4023.3,4023.2,2.48558361]
[1754696056982,4.664621,4023.3,4023.1,2.48563343]
[1754696057372,3.918,4023.3,4023.2,2.48558361]
[1754696057574,0.74664,4023.2,4022.8,2.4857931]
[1754696057773,4.2562,4023.1,4022.8,2.4857931]
[1754696057978,0.4662,4023.0,4022.9,2.48576863]
[1754696058278,0.124,4022.9,4022.8,2.48581222]
[1754696058478,3.914,4022.9,4022.8,2.48581222]
[1754696058854,4.660704,4022.9,4022.8,2.93501222]
[1754696060958,4.660704,4022.9,4022.8,3.47710863]
[1754696062448,4.660704,4022.9,4022.8,2.48581222]
[1754696064690,4.660704,4022.9,4022.8,2.95071222]
[1754696066375,4.660704,4022.9,4022.8,2.48581222]
[1754696067089,5.144304,4022.9,4022.8,2.48581222]
[1754696067503,4.660704,4022.9,4022.8,2.48581222]
[1754696068722,4.660704,4022.9,4022.7,2.48588176]
[1754696068723,5.144304,4022.9,4022.7,2.48588176]
[1754696069014,0.4836,4022.8,4022.7,2.48588176]
[1754696070979,0.4836,4022.8,4022.6,2.48594953]
[1754696071172,4.2676,4022.7,4022.6,2.48594953]
[1754696071372,4.2676,4022.7,4022.6,1e-08]
[1754696072276,4.7238,4022.7,4022.6,1e-08]
[1754696072502,5.470605,4022.7,4022.6,1e-08]
[1754696073385,4.530805,4022.7,4022.6,1e-08]
[1754696073812,4.530805,4022.7,4022.6,2.48595436]
[1754696074201,5.014405,4022.7,4022.6,2.48595436]
[1754696075589,5.014405,4022.7,4022.6,1e-08]
[1754696075916,4.530805,4022.7,4022.6,2.48595436]
[1754696076313,5.014405,4022.7,4022.6,1e-08]
[1754696076795,5.470605,4022.7,4022.6,1e-08]
[1754696077494,5.470605,4022.7,4022.6,2.48595436]
[1754696077885,5.014405,4022.7,4022.6,2.48595436]
[1754696079283,5.014405,4022.7,4022.6,1e-08]
[1754696079814,5.014405,4022.7,4022.6,2.48595436]
[1754696080017,4.530805,4022.7,4022.6,2.48595436]
[1754696080181,4.530805,4022.7,4022.6,2.98315729]
[1754696080385,3.784,4022.7,4022.6,3.44805729]
[1754696081801,3.784,4022.7,4022.6,2.98315729]
[1754696083607,4.2676,4022.7,4022.6,2.98315729]
[1754696083797,3.784,4022.7,4022.6,2.98315729]
[1754696086042,4.2676,4022.7,4022.6,2.98315729]
[1754696088110,4.7238,4022.7,4022.6,2.98315729]
[1754696088311,4.7238,4022.7,4022.6,2.48595436]
[1754696088536,4.2676,4022.7,4022.6,2.48595436]
[1754696088741,5.01438,4022.7,4022.6,2.48595436]
[1754696090315,5.47058,4022.7,4022.6,1e-08]
[1754696093252,7.95647255,4022.7,4022.6,1e-08]
[1754696093424,6.527398,4022.7,4022.6,1e-08]
[1754696097865,5.46721474,4022.7,4022.6,1e-08]
[1754696098765,8.50310729,4022.7,4022.6,1e-08]
[1754696104739,6.01721474,4022.7,4022.6,1e-08]
[1754696104979,8.50310729,4022.7,4022.6,1e-08]
[1754696105364,6.01721474,4022.7,4022.6,1e-08]
[1754696105574,4.52741474,4022.7,4022.6,1e-08]
[1754696108884,4.65141474,4022.7,4022.6,1e-08]
[1754696109093,3.90463474,4022.7,4022.6,1e-08]
[1754696109593,3.90463474,4022.7,4022.6,3.46881819]
[1754696112375,3.90463474,4022.7,4022.6,0.54136384]
[1754696112376,4.38493474,4022.7,4022.6,0.54136384]
[1754696112579,4.84383474,4022.7,4022.6,1e-08]
[1754696113180,7.45372729,4022.7,4022.6,1e-08]
[1754696113476,4.96983474,4022.7,4022.6,1e-08]
[1754696114059,7.45572729,4022.7,4022.6,1e-08]
[1754696114780,4.96983474,4022.7,4022.6,1e-08]
[1754696114954,4.51093474,4022.7,4022.6,1e-08]
[1754696115357,7.45572729,4022.7,4022.6,1e-08]
[1754696115553,9.00007822,4022.7,4022.6,1e-08]
[1754696115763,2.48613977,4022.3,4022.2,0.001]
[1754696116080,6.39913977,4022.3,4022.2,0.001]
[1754696116251,7.33833977,4022.3,4022.2,0.001]
[1754696116456,8.08526877,4022.3,4022.2,0.001]
[1754696116784,7.62636877,4022.3,4022.2,0.001]
[1754696116990,8.08526877,4022.3,4022.2,0.001]
[1754696122918,5.599129,4022.3,4022.2,0.001]
[1754696123292,8.08526877,4022.3,4022.2,0.001]
[1754696127742,9.16099307,4022.3,4022.2,0.001]
[1754696127910,9.71099307,4022.3,4022.2,0.001]
[1754696128237,12.71099307,4022.3,4022.2,0.001]
[1754696132146,13.24280652,4022.3,4022.2,0.001]
[1754696135649,6.03644885,4021.8,4021.7,0.001]
[1754696135847,9.81944885,4021.8,4021.7,0.001]
[1754696136214,10.98164885,4021.8,4021.7,0.001]
[1754696136718,11.5127241,4021.8,4021.7,0.001]
[1754696137345,10.98164885,4021.8,4021.7,0.001]
[1754696137647,12.32845044,4021.8,4021.7,0.001]
[1754696141866,11.38925044,4021.8,4021.7,0.001]
[1754696142041,11.88055044,4021.8,4021.7,0.001]
[1754696142242,8.09855044,4021.8,4021.7,0.001]
[1754696142429,10.04144885,4021.8,4021.7,0.001]
[1754696142932,6.26044885,4021.8,4021.7,0.001]
[1754696143140,10.04144885,4021.8,4021.7,0.001]
[1754696143446,4.555,4021.8,4021.7,0.4522]
[1754696143620,3.26044885,4021.8,4021.7,0.4522]
[1754696143825,7.04144885,4021.8,4021.7,0.001]
[1754696145128,8.48552797,4021.8,4021.7,0.001]
[1754696145434,8.93242797,4021.8,4021.7,0.001]
[1754696146250,11.93242797,4021.8,4021.7,0.001]
[1754696147636,2.48669617,4021.4,4021.3,0.001]
[1754696147844,13.21802726,4021.4,4021.3,0.001]
[1754696148040,13.70932726,4021.4,4021.3,0.001]
[1754696148227,17.16052726,4021.4,4021.3,0.001]
[1754696152135,17.60742726,4021.4,4021.3,0.001]
[1754696152838,17.16052726,4021.4,4021.3,0.001]
[1754696154104,17.16052726,4021.4,4020.2,0.002]
[1754696154105,2.48688169,4021.1,4018.5,0.003]
[1754696154255,0.6654975,4020.8,4018.2,8.53146859]
[1754696154601,0.55,4019.9,4019.2,0.4505]
[1754696154757,0.55,4019.7,4019.2,0.4505]
[1754696154962,2.48805732,4019.2,4018.7,8.53446859]
[1754696155156,0.4807,4020.3,4018.1,0.1]
[1754696155356,0.747471,4019.4,4018.7,8.53446859]
[1754696155558,3.801,4019.3,4018.4,8.53146859]
[1754696155801,3.801,4019.3,4018.9,0.4505]
[1754696155997,2.48763388,4019.9,4019.2,0.4505]
[1754696156199,2.48748935,4020.2,4019.2,8.98496859]
[1754696156496,3.806,4020.1,4019.3,0.4535]
[1754696156721,3.809,4020.0,4019.5,2.48784]
[1754696157009,3.81,4019.9,4019.6,0.4505]
[1754696157170,3.81,4019.9,4019.7,0.4505]
[1754696158472,3.81,4019.9,4019.2,3.39654184]
[1754696158696,3.81,4019.9,4019.4,0.4505]
[1754696158895,3.81,4019.9,4019.2,3.39653952]
[1754696159100,4.2907,4019.9,4019.2,0.4505]
[1754696159691,2.4877367,4019.8,4019.2,0.4505]
[1754696159877,3.809,4019.7,4019.2,0.4505]
[1754696160079,0.74732,4020.1,4019.2,0.4505]
[1754696160274,0.74732,4020.1,4019.5,2.48787085]
[1754696160473,3.33033805,4021.0,4019.6,0.4505]
[1754696160474,3.809,4020.0,4019.6,0.4505]
[1754696160894,3.809,4020.0,4019.6,0.4535]
[1754696161094,3.809,4020.0,4019.7,0.4505]
[1754696161304,0.747285,4020.3,4019.8,0.4505]
[1754696161504,6.29743843,4020.2,4019.8,0.4505]
[1754696161680,6.29743843,4020.2,4019.4,2.48793352]
[1754696161885,3.81,4020.2,4019.5,2.93836801]
[1754696162095,0.747285,4020.3,4019.9,8.53146859]
[1754696162297,3.811,4020.1,4019.9,8.53446859]
[1754696162509,3.811,4020.1,4020.0,0.4505]
[1754696162683,3.23442428,4020.6,4020.0,0.4505]
[1754696162684,0.747228,4020.6,4020.0,2.93806218]
[1754696163004,0.747228,4020.6,4020.1,0.4505]
[1754696163208,0.747228,4020.6,4020.2,0.4505]
[1754696163209,3.811,4020.5,4020.2,0.4505]
[1754696163409,3.811,4020.5,4019.9,11.01908728]
[1754696163614,3.811,4020.4,4020.3,0.4505]
[1754696163913,3.811,4020.4,4019.8,2.48768268]
[1754696164217,0.124,4020.1,4020.0,0.4505]
[1754696164376,3.934,4020.1,4020.0,0.4505]
[1754696164804,3.934,4020.1,4019.8,2.48768268]
[1754696165011,3.934,4020.1,4019.9,0.4505]
[1754696165531,3.934,4020.1,4020.0,0.4505]
[1754696166317,4.4147,4020.1,4019.4,2.9384284]
[1754696166626,0.124,4019.8,4019.4,2.9384284]
[1754696166773,0.124,4019.8,4019.5,2.48782249]
[1754696166774,3.81,4019.7,4019.5,2.48782249]
[1754696166982,3.81,4019.7,4019.4,0.55264936]
[1754696167323,0.124,4019.5,4019.4,0.4505]
[1754696167482,0.124,4019.5,4019.4,2.93843352]
[1754696168099,0.124,4019.5,4019.3,2.48798331]
[1754696168409,0.124,4019.5,4019.1,0.5505]
[1754696168410,3.811,4019.4,4019.1,0.5505]
[1754696168625,3.811,4019.4,4019.1,0.1]
[1754696168913,4.2917,4019.4,4019.1,0.1]
[1754696169503,0.1248,4019.2,4019.1,0.1]
[1754696171424,0.1248,4019.2,4016.1,3.22571005]
[1754696171425,0.55,4018.9,4016.1,3.22571005]
[1754696171638,0.55,4016.8,4016.1,0.1]
[1754696171844,4.40482007,4016.7,4016.1,0.1]
[1754696172131,4.446,4016.6,4016.4,2.48973842]
[1754696172309,3.897,4016.5,4016.1,0.1]
[1754696172500,0.55,4017.1,4016.3,8.53146859]
[1754696172703,3.902,4017.0,4016.4,0.46310882]
[1754696172907,0.74793,4017.1,4016.9,11.020924]
[1754696173134,0.4807,4019.0,4016.9,11.020924]
[1754696173135,3.923,4018.1,4017.9,2.4888446]
[1754696173322,3.923,4018.1,4017.9,0.4505]
[1754696173531,3.923,4018.1,4017.5,0.4505]
[1754696173713,3.923,4018.1,4017.7,2.48898241]
[1754696174031,0.3923,4018.0,4017.8,2.48890966]
[1754696174204,0.3923,4018.0,4017.9,0.4505]
[1754696174716,3.923,4018.1,4018.0,2.48880039]
[1754696174936,0.847613,4018.9,4018.8,2.48830496]
[1754696175100,4.022,4018.9,4018.8,2.48830496]
[1754696179034,0.1,4018.9,4018.8,2.48830496]
[1754696179257,4.018,4018.9,4018.8,2.9513797]
[1754696179535,4.018,4018.9,4018.8,3.48278392]
[1754696179950,4.018,4018.9,4018.8,3.78578392]
[1754696180143,0.1,4019.9,4019.8,2.48768595]
[1754696180349,4.018,4019.9,4019.8,2.48768595]
[1754696180947,4.018,4019.9,4018.6,3.0]
[1754696181263,4.955,4019.9,4019.6,2.48779326]
[1754696181444,0.124,4019.7,4019.6,2.48779326]
[1754696181645,0.124,4019.7,4019.4,2.48789518]
[1754696181855,0.4807,4019.6,4019.0,0.1248]
[1754696182052,3.918,4019.5,4019.4,2.48793352]
[1754696187439,0.124,4019.7,4019.6,2.48780973]
[1754696187788,4.033,4019.7,4019.6,2.50037209]
[1754696187941,4.033,4019.7,4019.6,3.03087029]
[1754696188280,0.224,4019.9,4019.8,2.48768595]
[1754696188580,4.132,4019.9,4019.8,2.48768595]
[1754696189833,4.132,4019.9,4019.8,2.92998595]
[1754696190038,4.132,4019.9,4019.8,2.48768595]
[1754696190738,5.0294,4019.9,4019.6,2.48776442]
[1754696190994,5.0294,4019.9,4019.0,2.48817478]
[1754696190995,0.8974,4019.8,4019.5,2.4878612]
[1754696191164,0.8974,4019.7,4019.5,2.4878612]
[1754696191337,4.029,4019.6,4019.5,2.4878612]
[1754696191546,4.031,4019.6,4019.5,2.4878612]
[1754696191776,0.124,4019.6,4019.5,2.4878612]
[1754696192091,4.031,4019.6,4019.5,2.4878612]
[1754696192436,4.031,4019.6,4018.3,0.4433]
[1754696192437,4.3505,4019.6,4018.3,0.4433]
[1754696192745,0.1,4019.9,4019.4,2.48788917]
[1754696192936,4.5695,4019.8,4019.2,2.48799805]
[1754696193136,2.48797482,4019.4,4018.3,2.48959909]
[1754696193361,4.457,4019.3,4018.3,2.48959909]
[1754696193542,0.8974,4019.2,4018.6,2.48840414]
[1754696193986,0.8974,4019.2,4018.3,0.001]
[1754696193987,0.8974,4019.2,4018.7,2.48836472]
[1754696194283,0.8974,4019.1,4018.7,2.48836472]
[1754696194480,3.909,4019.0,4018.7,2.48836472]
[1754696195185,3.909,4019.0,4018.5,2.48849073]
[1754696195361,3.909,4019.0,4018.7,2.48836289]
[1754696195670,3.909,4019.0,4018.9,2.48824305]
[1754696196177,3.906,4019.0,4018.9,2.48824305]
[1754696200704,4.3599,4019.0,4018.3,0.001]
[1754696200910,0.43599,4018.9,4018.4,2.48854013]
[1754696201093,0.8974,4018.8,4018.4,2.48854013]
[1754696201408,0.8974,4018.7,4018.4,2.48854013]
[1754696201577,3.9,4018.6,4018.4,2.48854013]
[1754696202396,3.9,4018.6,4018.5,2.48849073]
[1754696202614,4.0248,4018.6,4018.5,2.48849073]
[1754696203607,4.0248,4018.6,4018.4,2.48854687]
[1754696203985,4.0248,4018.6,4018.5,2.48849073]
[1754696210723,4.0128,4018.6,4018.5,2.48849073]
[1754696211523,0.1248,4018.6,4018.5,2.48849073]
[1754696211694,4.0128,4018.6,4018.5,2.93079073]
[1754696212233,4.0128,4018.6,4018.5,2.48849073]
[1754696213921,4.0128,4018.6,4018.5,2.93079073]
[1754696214654,4.0128,4018.6,4018.5,11.49608507]
[1754696215360,4.0128,4018.6,4018.5,11.05378507]
[1754696218325,4.0048,4018.6,4018.5,11.05378507]
[1754696218641,0.1248,4018.6,4018.5,11.05378507]
[1754696218842,4.0038,4018.6,4018.5,11.05378507]
[1754696219048,0.1248,4018.6,4018.5,11.05378507]
[1754696219224,4.0028,4018.6,4018.5,11.05378507]
[1754696219424,4.0028,4018.6,4018.5,2.48849073]
[1754696224748,3.9988,4018.6,4018.5,2.48849073]
[1754696225368,0.9304,4019.0,4018.9,2.48824305]
[1754696225667,1.0245,4019.6,4019.0,2.48815196]
[1754696225868,0.4745,4019.6,4019.1,2.48805832]
[1754696226030,0.124,4019.3,4019.2,2.48805732]
[1754696226359,4.9254,4019.3,4019.2,2.48805732]
[1754696228473,4.9244,4019.3,4019.2,2.48805732]
[1754696231665,4.9214,4019.3,4019.2,2.48805732]
[1754696232094,4.4655,4019.3,4019.2,2.48805732]
[1754696236081,4.4655,4019.3,4019.1,2.48810153]
[1754696236281,4.4655,4019.3,4018.5,0.1248]
[1754696236282,0.9304,4019.2,4018.5,0.1248]
[1754696236480,0.1248,4018.9,4018.7,2.48831298]
[1754696236708,0.1248,4018.9,4018.8,2.48830496]
[1754696236880,4.9162,4018.9,4018.8,2.48830496]
[1754696237276,5.40782,4018.9,4018.3,0.001]
[1754696237581,0.1248,4018.6,4018.3,2.48961248]
[1754696237781,4.7914,4018.5,4018.3,2.48961248]
[1754696238108,0.9304,4018.4,4018.3,2.48961248]
[1754696239020,0.9304,4018.4,4018.3,2.48961458]
[1754696239791,3.861,4018.5,4018.4,2.48855265]
[1754696240003,0.1248,4018.6,4018.5,2.48849073]
[1754696240375,3.9838,4018.6,4018.5,2.48849073]
[1754696241279,4.4583,4018.6,4018.5,2.48849073]
[1754696243417,4.4583,4018.6,4018.4,2.48853384]
[1754696243624,0.9304,4018.5,4018.3,2.48959651]
[1754696243822,3.856,4018.4,4018.3,2.48959651]
[1754696244029,4.3305,4018.4,4018.3,2.48959651]
[1754696244924,3.856,4018.4,4018.3,2.48959651]
[1754696246246,4.7983,4018.4,4018.3,2.48959651]
[1754696248747,4.3555,4018.4,4018.3,2.48959651]
[1754696248947,3.856,4018.4,4018.3,2.48959651]
[1754696249345,0.1248,4018.6,4018.4,2.48851771]
[1754696249545,3.85,4018.5,4018.4,2.48851771]
[1754696250546,0.1248,4018.6,4018.5,2.48849073]
[1754696250758,3.9738,4018.6,4018.5,2.48849073]
[1754696252659,1.0671,4018.6,4018.5,2.48849073]
[1754696252963,4.9141,4018.6,4018.5,2.48849073]
[1754696253492,3.55,4018.5,4018.3,0.001]
[1754696253634,0.55,4018.3,4017.2,2.48927689]
[1754696253958,0.55,4018.3,4017.1,0.1]
[1754696253959,3.03898623,4017.7,4017.1,0.1]
[1754696254131,6.90698623,4017.7,4017.1,0.1]
[1754696254528,7.84928623,4017.7,4017.1,0.1]
[1754696256197,2.48929602,4017.2,4017.1,0.1]
[1754696256478,2.48929602,4017.2,4016.1,0.1]
[1754696256479,0.55,4016.6,4016.1,0.1]
[1754696256646,0.55,4016.4,4016.1,0.1]
[1754696256837,3.875,4016.3,4016.1,0.1]
[1754696257162,0.9423,4016.2,4016.1,0.1]
[1754696259662,3.875,4016.3,4016.1,0.1]
[1754696259866,3.873,4016.2,4016.1,0.1]
[1754696260288,2.7696,4016.2,4013.1,0.1]
[1754696260466,0.97342472,4016.1,4014.7,8.56529434]
[1754696260659,0.28007247,4016.0,4013.2,4.89172604]
[1754696260847,3.939,4015.9,4015.1,8.56529434]
[1754696261059,3.939,4015.8,4015.2,0.4387]
[1754696261271,3.951,4015.7,4015.3,11.05576827]
[1754696261450,3.951,4015.6,4015.0,8.61029434]
[1754696261650,0.9423,4016.3,4015.0,8.61029434]
[1754696261651,3.951,4015.5,4015.0,0.045]
[1754696261949,3.953,4015.4,4015.0,0.045]
[1754696262152,3.961,4015.3,4015.0,0.045]
[1754696262379,3.961,4015.2,4015.0,0.045]
[1754696262582,4.9033,4015.2,4015.0,0.045]
[1754696262849,5.39363,4015.2,4015.0,2.53565211]
[1754696263068,0.9423,4015.1,4015.0,0.045]
[1754696263650,0.1248,4015.1,4015.0,0.045]
[1754696264485,3.55769799,4015.1,4015.0,0.045]
[1754696265075,1.0671,4015.1,4015.0,0.045]
[1754696265389,0.1248,4015.1,4015.0,1e-08]
[1754696265590,3.975,4015.1,4015.0,1e-08]
[1754696266001,3.975,4015.1,4015.0,2.92935056]
[1754696266167,3.975,4015.1,4015.0,3.42205056]
[1754696266367,5.98,4015.8,4015.6,2.49023852]
[1754696266566,5.98,4015.8,4015.7,2.49022586]
[1754696266929,3.977,4015.8,4015.7,2.92892586]
[1754696267116,3.977,4015.8,4015.7,2.49022586]
[1754696267278,3.977,4015.8,4015.4,2.49035544]
[1754696267470,3.977,4015.8,4015.1,2.49059799]
[1754696267668,3.977,4015.8,4015.0,2.9293538]
[1754696267972,0.4428,4015.7,4015.0,2.49065199]
[1754696268177,0.4428,4015.7,4014.2,3.0]
[1754696268405,0.4995,4015.6,4014.7,2.49078578]
[1754696268592,0.4995,4015.6,4014.4,0.4387]
[1754696268797,0.4995,4015.6,4014.7,2.49078448]
[1754696268985,1.28053424,4015.6,4014.7,2.49078448]
[1754696269301,3.7708683,4015.6,4014.5,2.49096149]
[1754696269500,2.4906811,4015.0,4014.1,0.1]
[1754696269703,3.975,4014.9,4014.1,0.1]
[1754696269906,4.4178,4014.9,4014.1,0.1]
[1754696270080,6.90852708,4014.9,4014.1,0.1]
[1754696270283,6.90852708,4014.9,4014.1,2.59120536]
[1754696270284,4.4178,4014.9,4014.1,2.59120536]
[1754696270597,4.4178,4014.9,4014.2,2.49115639]
[1754696271579,4.4178,4014.9,4014.1,2.59120683]
[1754696271908,6.90852538,4014.9,4014.1,2.59120683]
[1754696272201,4.4178,4014.9,4014.2,2.49114655]
[1754696272503,0.4995,4015.0,4014.1,0.1]
[1754696272802,3.972,4014.9,4014.2,0.45134232]
[1754696272994,3.972,4014.8,4014.7,2.49078452]
[1754696273233,0.4995,4015.4,4014.5,0.4387]
[1754696273391,3.972,4015.3,4014.8,2.4907604]
[1754696273908,3.972,4015.3,4014.3,0.35353098]
[1754696274078,0.4428,4015.2,4014.3,0.35353098]
[1754696274409,0.4428,4015.2,4014.5,2.49096196]
[1754696274575,1.0408,4015.1,4014.1,0.1]
[1754696274780,3.53141176,4015.1,4014.3,2.49109336]
[1754696274976,1.0408,4015.1,4014.1,0.1]
[1754696275182,3.986,4015.0,4014.3,2.49107881]
[1754696275582,3.986,4015.0,4014.1,0.1]
[1754696275583,0.1248,4014.4,4014.1,0.1]
[1754696275789,4.1108,4014.4,4014.3,2.49108189]
[1754696276913,3.985,4014.8,4014.3,1.0736]
[1754696277215,3.985,4014.8,4014.7,2.49084614]
[1754696277404,0.1248,4015.0,4014.9,2.49072206]
[1754696277592,4.1118,4015.0,4014.9,2.49072206]
[1754696278219,4.1118,4015.0,4014.8,2.49076927]
[1754696278691,4.1118,4015.0,4014.9,2.49072206]
[1754696279012,4.1118,4015.0,4014.5,2.49096985]
[1754696279318,0.1248,4015.0,4014.9,2.49072206]
[1754696279529,4.1108,4015.0,4014.9,2.49072206]
[1754696279726,4.1068,4015.0,4014.9,2.49072206]
[1754696281501,0.1248,4015.0,4014.9,2.49072206]
[1754696281702,0.1248,4015.0,4014.7,2.49079573]
[1754696282505,0.1248,4015.0,4014.8,2.49077899]
[1754696283520,0.1248,4015.0,4014.5,0.4505]
[1754696283686,0.1248,4015.0,4014.9,2.49072206]
[1754696284239,0.1248,4015.0,4013.5,2.49159088]
[1754696284240,3.85450368,4015.0,4013.5,2.49159088]
[1754696284401,0.98291766,4014.9,4014.5,2.49091477]
[1754696284723,0.1248,4014.6,4014.5,2.49091477]
[1754696284886,0.1248,4014.6,4014.5,2.98921477]
[1754696285219,3.974,4015.1,4015.0,2.4906106]
[1754696285394,0.002,4015.6,4015.1,2.4905722]
[1754696285595,4.50590284,4015.5,4015.1,2.4905722]
[1754696285798,0.1248,4015.2,4015.1,0.4983]
[1754696285993,0.65670284,4015.2,4015.1,0.4983]
[1754696286196,0.65670284,4015.2,4015.1,2.98889799]
[1754696286792,0.65670284,4015.2,4015.1,0.4983]
[1754696287192,0.65670284,4015.2,4014.8,2.49077282]
[1754696287411,0.1248,4015.2,4014.9,0.4983]
[1754696287627,0.93919294,4015.2,4014.9,0.4983]
[1754696287921,0.53229358,4015.1,4014.7,2.49082092]
[1754696288127,4.50129358,4015.0,4014.8,2.9890764]
[1754696288336,0.53229358,4014.9,4014.8,2.4907764]
[1754696289104,0.53229358,4014.9,4014.8,2.9890764]
[1754696289802,0.53229358,4014.9,4014.4,0.1248]
[1754696290003,0.1248,4014.8,4014.5,2.98927023]
[1754696290315,0.1248,4014.8,4014.7,2.49084614]
[1754696290512,0.65763224,4014.8,4014.7,2.49084614]
[1754696290716,0.66080431,4015.4,4015.2,2.49053233]
[1754696290914,4.49684068,4015.3,4015.2,2.98883233]
[1754696291116,4.62164068,4015.3,4015.2,2.98883233]
[1754696291434,0.65764068,4015.3,4015.2,0.4983]
[1754696291632,4.62164068,4015.3,4015.2,0.4983]
[1754696292134,0.65764068,4015.3,4014.9,0.4983]
[1754696292340,4.49584068,4015.2,4015.1,2.49059799]
[1754696292518,4.62064068,4015.2,4015.1,2.49059799]
[1754696292721,4.62064068,4015.2,4015.1,2.98889799]
[1754696292923,4.62064068,4015.2,4014.5,4.01160933]
[1754696293235,4.0878,4015.2,4015.0,2.49060783]
[1754696293437,4.0878,4015.2,4015.1,2.49059799]
[1754696293737,0.65770096,4015.2,4015.1,2.49059799]
[1754696293937,4.61670096,4015.2,4015.1,2.49059799]
[1754696295421,4.0838,4015.2,4015.1,2.49059799]
[1754696295819,0.1248,4015.2,4015.1,2.49059799]
[1754696296035,4.0808,4015.2,4015.1,2.49059799]
[1754696296214,4.0808,4015.2,4015.0,2.49064734]
[1754696296409,4.0808,4015.2,4015.1,2.49059799]
[1754696297629,4.5322,4015.2,4014.8,2.49078398]
[1754696297937,0.4514,4015.1,4014.9,2.49069655]
[1754696298345,0.4514,4015.0,4014.9,2.49069655]
[1754696299125,0.4514,4015.0,4014.4,0.1248]
[1754696299329,3.952,4014.9,4014.3,2.49109433]
[1754696299525,0.1248,4014.6,4014.3,2.49109433]
[1754696299715,4.4014,4014.5,4014.2,2.49115472]
[1754696299938,0.1248,4014.3,4014.2,2.49115472]
[1754696300767,3.949,4014.5,4014.2,0.4983]
[1754696301072,3.949,4014.5,4014.4,2.49103228]
[1754696301223,4.4004,4014.5,4014.1,2.49121845]
[1754696301428,0.4514,4014.4,4014.3,2.49103414]
[1754696301867,3.949,4014.5,4014.4,2.49103228]
[1754696302223,4.4004,4014.5,4014.4,2.49103228]
[1754696302752,4.4014,4014.5,4014.4,2.49103228]
[1754696303121,0.4514,4014.5,4014.4,2.49103228]
[1754696303365,4.4004,4014.5,4014.4,2.49103228]
[1754696303784,0.4514,4014.5,4014.4,2.49103228]
[1754696304083,0.4514,4014.8,4014.0,0.001]
[1754696304237,3.948,4014.5,4014.4,2.49103228]
[1754696305037,3.948,4014.5,4014.4,2.98163228]
[1754696305659,0.002,4015.2,4014.4,9.61940107]
[1754696305844,0.002,4015.2,4014.9,2.49066827]
[1754696305845,3.947,4015.1,4014.9,2.49066827]
[1754696306041,3.947,4015.1,4014.8,2.49078246]
[1754696306238,4.4169,4015.1,4014.8,2.49078246]
[1754696306572,0.4699,4015.0,4014.9,2.49072206]
[1754696306739,0.4699,4015.0,4014.8,2.49077324]
[1754696307080,0.4699,4014.9,4014.8,2.49077324]
[1754696308345,3.947,4015.1,4014.8,2.49077324]
[1754696308346,3.947,4015.1,4014.9,2.49067343]
[1754696308552,4.4169,4015.1,4014.9,2.49067343]
[1754696308738,0.002,4015.2,4015.0,2.49066002]
[1754696308937,3.943,4015.1,4015.0,2.49066002]
[1754696309876,4.4129,4015.1,4014.9,2.49070532]
[1754696310584,4.4129,4015.1,4015.0,2.49066002]
[1754696310766,3.943,4015.1,4015.0,2.49066002]
[1754696311184,0.002,4015.2,4015.1,2.49059799]
[1754696311514,3.94,4015.2,4015.1,2.49059799]
[1754696311696,4.0638,4015.2,4015.1,2.49059799]
[1754696312009,4.5337,4015.2,4014.9,2.49070656]
[1754696312211,4.0638,4015.2,4014.9,2.49070656]
[1754696312378,0.4699,4015.1,4015.0,2.49066002]
[1754696313115,4.4069,4015.1,4015.0,2.49066002]
[1754696313918,4.4069,4015.1,4014.8,2.49077997]
[1754696313919,4.4069,4015.1,4014.9,2.490676]
[1754696314117,4.4069,4015.1,4015.0,2.49066002]
[1754696314520,4.4069,4015.1,4014.7,0.4896]
[1754696314725,0.4699,4015.0,4014.8,2.49076525]
[1754696315022,0.4699,4014.9,4014.7,2.4908358]
[1754696315195,3.933,4014.8,4014.7,2.4908358]
[1754696315391,4.4029,4014.8,4014.4,2.49198251]
[1754696315705,0.1248,4014.5,4014.4,2.49198251]
[1754696315894,4.5267,4014.5,4014.4,0.001]
[1754696316690,4.5267,4014.5,4014.4,2.49203228]
[1754696316890,4.5267,4014.5,4014.4,0.001]
[1754696318528,4.5267,4014.5,4014.4,2.49203228]
[1754696319096,4.5267,4014.5,4014.4,0.001]
[1754696325304,5.22844988,4014.5,4014.4,0.001]
[1754696327499,6.26146156,4014.5,4014.4,0.001]
[1754696329718,9.30243179,4014.5,4014.4,0.001]
[1754696329918,9.76523179,4014.5,4014.4,0.001]
[1754696330845,12.76523179,4014.5,4014.4,0.001]
[1754696334829,8.37043179,4014.5,4014.4,0.001]
[1754696335023,12.28043179,4014.5,4014.4,0.001]
[1754696335843,12.75793179,4014.5,4014.4,0.001]
[1754696339166,8.32813179,4014.5,4014.4,0.001]
[1754696339451,12.23213179,4014.5,4014.4,0.001]
[1754696340241,12.70963179,4014.5,4014.4,0.001]
[1754696341666,12.23213179,4014.5,4014.4,0.001]
[1754696342231,12.70963179,4014.5,4014.4,0.001]
[1754696343563,13.2416086,4014.5,4014.4,0.001]
[1754696344128,13.7414086,4014.5,4014.4,0.001]